Cogmind - Beta 13 @@@ ROGUE MODE // 2024.04.22 @ 17:11:12 Player: Oldman Pu Result: Destroyed by G-47 Trooper with Particle Gun Performance ------------- Evolutions (2) 1000 Regions Visited (3) 600 Robots Destroyed (83) 415 Value Destroyed (2325) 2325 Prototype IDs (11) 220 Alien Tech Used (0) 0 Bonus (271) 271 TOTAL SCORE: 4831 Bonus ------- High Alert Combat Kills 271 Cogmind --------- Core Integrity 0/550 Matter 275/300 Energy 14/160 System Corruption 0% Temperature Hot (212) Movement Rolling (120) Ox2 Location -8/Materials Parts ------- > --- POWER (1) -------- Light Nuclear Core > --- PROPULSION (2) --- Armored Wheel > --- UTILITY (5) ------ Large Storage Unit Weight Redist. System > --- WEAPON (3) ------- Pulse Rifle Cooled Pulse Rifle Advanced Beam Cannon > --- INVENTORY (15) --- Improved Ion Engine Armored Wheel Huge Storage Unit Peak State ------------ > --- POWER ------------ Light Nuclear Core > --- PROPULSION ------- Compact Wheel Armored Wheel > --- UTILITY ---------- Improved Heat Sink Advanced Heat Sink Humpback Hardened Light Armor Plating > --- WEAPON ----------- Cooled Pulse Rifle Cooled Pulse Rifle Cooled Pulse Rifle > --- INVENTORY -------- Light Deuterium Engine Light Nuclear Core Armored Wheel Armored Wheel Armored Wheel Improved Heat Sink Improved Heat Sink Light Armor Plating Field Laser Field Laser Field Laser Field Laser Field Laser Field Laser Field Laser Field Laser Field Laser Pulse Rifle Pulse Rifle Cooled Pulse Rifle Ion Cannon Autogun [Rating: 39] Favorites ----------- Power Light Nuclear Core Engine Heavy Ion Engine Power Core Light Nuclear Core Propulsion Compact Wheel Wheel Compact Wheel Utility Improved Heat Sink Device Improved Heat Sink Storage Large Storage Unit Protection Hardened Light Armor Plating Weapon Cooled Pulse Rifle Energy Gun Cooled Pulse Rifle Energy Cannon Beam Cannon Ballistic Gun Assault Rifle Build | -11 -10 -10 -8 ------- Run | Yrd Mat Sub Mat Slots Evolved 4 | . . . 4 Power . | . . . . Propulsion . | . . . . Utility 3 | . . . 3 Weapon 1 | . . . 1 Parts Attached 83 | 7 12 6 58 Power 14 | 2 1 2 9 Engine 11 | 2 . 2 7 Core 3 | . 1 . 2 Reactor . | . . . . Propulsion 22 | 2 3 3 14 Treads . | . . . . Leg . | . . . . Wheel 22 | 2 3 3 14 Hover . | . . . . Flight . | . . . . Utility 20 | 1 3 . 16 Device 10 | . 1 . 9 Storage 6 | 1 1 . 4 Processor . | . . . . Hackware . | . . . . Protection 4 | . 1 . 3 Artifact . | . . . . Weapon 27 | 2 5 1 19 Energy Gun 15 | 1 1 . 13 Energy Cannon 7 | . 2 1 4 Ballistic Gun 5 | 1 2 . 2 Ballistic Cannon . | . . . . Launcher . | . . . . Special Weapon . | . . . . Impact Weapon . | . . . . Slashing Weapon . | . . . . Piercing Weapon . | . . . . Special Melee Weapon . | . . . . Unidentified Prototypes 7 | . 1 . 6 Parts Lost 27 | . . 5 22 Power 6 | . . 2 4 Propulsion 8 | . . 2 6 Utility 4 | . . . 4 Weapon 9 | . . 1 8 Highest Loss Streak 7 | . . 4 7 To Critical Strikes . | . . . . Average Slot Usage (%) 93 | . 99 97 90 Engine 6 | . 4 11 6 Core 4 | . 9 . 2 Wheel 20 | . 28 27 16 Device 12 | . 2 14 16 Storage 12 | . 14 14 11 Protection 9 | . 10 . 9 Energy Gun 13 | . 4 . 20 Energy Cannon 8 | . 13 27 4 Ballistic Gun 4 | . 10 . 2 Naked Turns . | . . . . Heaviest Build 225 | 12 34 37 225 Greatest Support 36 | 32 32 36 36 Greatest Overweight (x) 13 | 1 1 2 13 Average Overweight (x) 2 | . . . 5 Largest Inventory Capacity 35 | 8 15 15 35 Average Capacity 22 | 6 14 15 27 Most Carried 35 | 1 15 15 35 Average Carried 18 | . 10 14 23 Final Capacity 15 | 8 15 15 15 Final Carried 15 | 1 15 14 3 Class Distribution -------------------- 38% | Mutant 37% | Hauler-Tank 11% | Tank 10% | Scavenger-Tank Dominant Class ---------------- Mutant | -10/Materials Mutant | -10/Subcaves Hauler-Tank | -8/Materials Resources | -11 -10 -10 -8 ----------- Run | Yrd Mat Sub Mat Matter Collected 1375 | 66 627 86 596 Remotely . | . . . . Salvage Created 3217 | . 607 133 2477 Parts 165 | . 40 8 117 Haulers Intercepted 6 | . 2 . 4 Recyclers Shooed 3 | . 2 . 1 Parts Field Recycled . | . . . . Retrieved Matter . | . . . . Parts Self-Destructed . | . . . . Prevented . | . . . . Kills | -11 -10 -10 -8 ------- Run | Yrd Mat Sub Mat Combat Hostiles Destroyed 58 | . 10 3 45 Guns 44 | . 6 . 38 Cannons 12 | . 4 3 5 Classes Destroyed 15 | . 7 1 7 Worker 5 | . 1 . 4 Builder 2 | . . . 2 Tunneler 1 | . . . 1 Hauler 6 | . 2 . 4 Recycler 2 | . 1 . 1 Mechanic 1 | . . . 1 Operator 2 | . 1 . 1 Watcher 6 | . 3 . 3 Swarmer 14 | . 3 . 11 Grunt 28 | . 7 . 21 Brawler 2 | . . . 2 Duelist 2 | . . . 2 Protector 1 | . . . 1 Sentry 8 | . . . 8 Subdweller 3 | . . 3 . Best Kill Streak 9 | . 3 1 9 Combat Bots Only 9 | . 2 1 9 Max Kills in Single Turn 2 | . 1 1 2 Gunslinging 1 | . . . 1 Exploded . | . . . . Melee . | . . . . Uniques/NPCs Destroyed . | . . . . Combat | -11 -10 -10 -8 -------- Run | Yrd Mat Sub Mat Hostile Shots Fired 315 | . 31 30 254 Missed 84 | . 8 4 72 Damage Taken 3853 | . 261 535 3057 Core 707 | . 67 84 556 Absorbed by Shields . | . . . . Redirected to Shielding 52 | . . . 52 Regen/Repaired (Parts) 107 | . 107 . . Core Remaining (%) 69 | 100 . 39 . Volleys Fired 222 | . 57 23 142 Largest 3 | . 2 2 3 Hottest 160 | . 80 140 160 Shots Fired 554 | . 107 44 403 Gun 440 | . 82 . 358 Cannon 114 | . 25 44 45 Launcher . | . . . . Special . | . . . . Kinetic 77 | . 50 . 27 Thermal 477 | . 57 44 376 Explosive . | . . . . Electromagnetic . | . . . . Robot Hit Streak 26 | . 6 11 26 Robot Miss Streak 7 | . 4 1 7 Penetration Max . | . . . . Secondary Targets 5 | . . . 5 Max Gunslinging Chain 1 | . . . 1 Shots Hit Robots 363 | . 65 28 270 Core Hits 136 | . 29 6 101 Critical Kills 1 | . 1 . . Critical Parts Destroyed 1 | . 1 . . Critical Strikes 14 | . 2 . 12 Burn 12 | . . . 12 Destroy 2 | . 2 . . Melee Attacks . | . . . . Impact . | . . . . Slashing . | . . . . Piercing . | . . . . Sneak Attacks . | . . . . Combat Hostiles . | . . . . Follow-up Attacks . | . . . . Damage Inflicted 6732 | . 864 550 5318 Guns 5375 | . 637 . 4738 Cannons 1357 | . 227 550 580 Explosions . | . . . . Melee . | . . . . Ramming . | . . . . Kinetic 630 | . 417 . 213 Thermal 6102 | . 447 550 5105 Explosive . | . . . . Electromagnetic . | . . . . Impact . | . . . . Slashing . | . . . . Piercing . | . . . . Highest Corruption . | . . . . Average Corruption . | . . . . Corruption Purged . | . . . . Corruption Blocked . | . . . . Overload Shots . | . . . . Overflow Damage 20 | . . . 20 Projectiles 20 | . . . 20 Explosions . | . . . . Melee . | . . . . Knockbacks . | . . . . Impact . | . . . . Kinetic . | . . . . Secondary . | . . . . Self-Inflicted Damage . | . . . . Shots . | . . . . Rammed . | . . . . Targets Rammed . | . . . . Kicked . | . . . . Crushed . | . . . . Highest Temperature 283 | . 202 . 283 Average Temperature 60 | . 60 . 60 Received Heat Transfer 1239 | . 123 126 990 Effects 3 | . . . 3 Interference 3 | . . . 3 Siege Activations . | . . . . Robots Corrupted . | . . . . Combat Hostiles . | . . . . Parts Fried . | . . . . Impact Corruptions . | . . . . Robots Melted 2 | . . . 2 Combat Hostiles 2 | . . . 2 Parts Melted 24 | . 1 . 23 Heat Transferred 12714 | . 981 1036 10697 Parts Sabotaged . | . . . . Parts Stolen . | . . . . Parts Stripped . | . . . . Power Chain Reactions . | . . . . Alert | -11 -10 -10 -8 ------- Run | Yrd Mat Sub Mat Peak Influence 827 | . 237 . 827 Initial . | . . . . Average 295 | . 102 . 391 Maximum Alert Level 3 | . 1 . 3 Low Security (%) 47 | 100 96 . 24 Level 1 23 | . 3 . 32 Level 2 15 | . . . 23 Level 3 13 | . . . 20 Level 4 . | . . . . Level 5 . | . . . . High Security . | . . . . Max Security . | . . . . Squads Dispatched 13 | . 2 . 11 Investigation 4 | . 1 . 3 Extermination . | . . . . Reinforcement 5 | . 1 . 4 Assault 1 | . . . 1 Garrison 3 | . . . 3 Intercept . | . . . . Searches Triggered . | . . . . Construction Impeded 1 | . . . 1 Haulers Reinforced . | . . . . Active Scanning Responses . | . . . . Cargo Convoy Interrupts . | . . . . Stealth | -11 -10 -10 -8 --------- Run | Yrd Mat Sub Mat Distress Signals 6 | . . . 6 Communications Jammed . | . . . . Distress Signals . | . . . . Times Spotted 88 | . 15 4 69 Peak Tracking Total 10 | . 3 2 10 Tactical Retreats 6 | . 1 . 5 Traps | -11 -10 -10 -8 ------- Run | Yrd Mat Sub Mat Traps Triggered 1 | . . . 1 Indirectly . | . . . . Trap Hack Attempts . | . . . . Triggered . | . . . . Disarmed 6 | . 6 . . Reprogrammed . | . . . . Reused . | . . . . Traps Extracted . | . . . . Installed . | . . . . Triggered . | . . . . Machines | -11 -10 -10 -8 ---------- Run | Yrd Mat Sub Mat Machines Disabled 4 | . . . 4 Max in Single Turn 1 | . . . 1 Machines Repaired . | . . . . Machines Dismantled . | . . . . Machines Sabotaged . | . . . . Overloaded Fab Kills . | . . . . Hacking | -11 -10 -10 -8 --------- Run | Yrd Mat Sub Mat Machines Accessed 14 | . 6 . 8 Terminals 9 | . 5 . 4 Fabricators . | . . . . Repair Stations 2 | . 1 . 1 Recycling Units . | . . . . Scanalyzers 2 | . . . 2 Garrison Access 1 | . . . 1 Total Hacks 51 | . 19 . 32 Successful 37 | . 16 . 21 Failed 14 | . 3 . 11 Catastrophic 1 | . . . 1 Database Lockouts . | . . . . Manual . | . . . . Terminals 24 | . 14 . 10 Fabricators . | . . . . Repair Stations 9 | . 5 . 4 Recycling Units . | . . . . Scanalyzers 14 | . . . 14 Garrison Access 4 | . . . 4 Terminal Hacks 19 | . 12 . 7 Record 11 | . 7 . 4 Prototype ID Bank 2 | . 1 . 1 Alert Level 1 | . . . 1 Locate Traps 1 | . 1 . . Disarm Traps 2 | . 2 . . Transport Status 1 | . 1 . . Reinforcement Status 1 | . . . 1 Fabricator Hacks . | . . . . Repair Station Hacks 5 | . 4 . 1 Scan Component 3 | . 2 . 1 Repair 2 | . 2 . . Recycling Unit Hacks . | . . . . Scanalyzer 13 | . . . 13 Insert Component 7 | . . . 7 Analyze 6 | . . . 6 Garrison Access Hacks . | . . . . Unauthorized Hacks . | . . . . Terminals . | . . . . Fabricators . | . . . . Repair Stations . | . . . . Recycling Units . | . . . . Scanalyzers . | . . . . Garrison Access . | . . . . Data Cores Recovered 1 | . . . 1 Used . | . . . . Hacking Detections 10 | . 5 . 5 Full Trace Events 4 | . 1 . 3 Feedback Events . | . . . . Feedback Blocked . | . . . . Robot Schematics Acquired . | . . . . Robots Built . | . . . . Authchips . | . . . . Time . | . . . . Total Robot Build Rating . | . . . . Part Schematics Acquired 6 | . . . 6 Parts Built . | . . . . Authchips . | . . . . Time . | . . . . Total Part Build Rating . | . . . . Parts Repaired 2 | . 2 . . Time 64 | . 64 . . Parts Recycled . | . . . . Recycled Matter . | . . . . Retrieved Matter . | . . . . Retrieved Components . | . . . . Parts Scanalyzed 6 | . . . 6 Part Schematics Acquired 6 | . . . 6 Parts Damaged 1 | . . . 1 Bothacking | -11 -10 -10 -8 ------------ Run | Yrd Mat Sub Mat Used RIF Installer . | . . . . Robots Hacked . | . . . . Non-combat . | . . . . Combat . | . . . . Robot Hacks Applied . | . . . . Relay Couplers Released . | . . . . Fabnet Peak Effective % . | . . . . Robots Rewired . | . . . . Allies Hacked . | . . . . Hacks Repelled . | . . . . Allies | -11 -10 -10 -8 -------- Run | Yrd Mat Sub Mat Total Allies . | . . . . Largest Group . | . . . . Highest-Rated Group . | . . . . Highest-Rated Ally . | . . . . Total Orders . | . . . . Ally Attacks . | . . . . Total Damage . | . . . . Kills . | . . . . Allies Corrupted . | . . . . Allies Melted . | . . . . Intel | -11 -10 -10 -8 ------- Run | Yrd Mat Sub Mat Robot Analysis Total . | . . . . Derelict Logs Recovered . | . . . . Drone Launches . | . . . . Drone Recoveries . | . . . . Exploration | -11 -10 -10 -8 ------------- Run | Yrd Mat Sub Mat Turns Passed 3739 | 40 1084 316 2299 Spaces Moved 1890 | 32 758 176 924 Core 11 | 11 . . . Treads . | . . . . Legs . | . . . . Wheels 1879 | 21 758 176 924 Hover . | . . . . Flight . | . . . . Fastest Speed 50 | 50 100 100 80 Average Speed 138 | 92 105 112 171 Slowest Speed 275 | 100 115 130 275 Overloaded Moves . | . . . . Propulsion Burnouts . | . . . . Robots Hopped . | . . . . Cave-ins Triggered . | . . . . Exploration Rate (%) 45 | 3 97 12 69 Regions Visited 3 Branch Regions 1 Pre-discovered Areas 1 | . . 1 . Known Exits Taken . | . . . . Unknown Exits Taken 3 | 1 1 1 . Scrap Searched 3 | . . 3 . Spaces Dug . | . . . . Terrain Destroyed 4 | . . . 4 Melee . | . . . . Projectile 4 | . . . 4 AOE . | . . . . Terrain Rammed . | . . . . Walls Destroyed . | . . . . Machines Disabled . | . . . . Actions | -11 -10 -10 -8 --------- Run | Yrd Mat Sub Mat Total 2557 | 38 930 256 1333 Wait 248 | . 85 38 125 Move 1887 | 31 757 175 924 Hop . | . . . . Pick Up 65 | . 14 7 44 Fast Attach 27 | 6 3 2 16 Attach 26 | . . 3 23 Detach 5 | . . . 5 Swap 32 | 1 9 1 21 Drop 45 | . 5 7 33 Fire 222 | . 57 23 142 Melee . | . . . . Ram . | . . . . Kick . | . . . . Crush . | . . . . Escape Stasis . | . . . . Rewire . | . . . . Trap . | . . . . Miscellaneous . | . . . . Route ------- -11/Scrapyard -10/Materials (discovered 6 exits: [*Mat x3] / [*Min x2] / [*Sub]) -10/Subcaves -8/Materials (discovered 2 exits: [*Fac x2]) History --------- Turn | Location | Event 8 | -11/Scrapyard | Discovered new exit (range 16) 41 | -11/Scrapyard | Entered Materials 139 | -10/Materials | Discovered new exit (range 15) 142 | -10/Materials | Discovered new exit (range 13) 314 | -10/Materials | Build established: Mutant 397 | -10/Materials | Discovered new exit (range 4) 499 | -10/Materials | Discovered new exit (range 14) 579 | -10/Materials | Discovered new exit (range 13) 906 | -10/Materials | Repaired Imp. Heat Sink 935 | -10/Materials | Repaired Lgt. Armor Plating 1121 | -10/Materials | Discovered new exit (range 4) 1125 | -10/Materials | Entered Subcaves 1139 | -10/Subcaves | Disturbed a concealed Subdweller 1186 | -10/Subcaves | A swath of the cavern ceiling suddenly collapsed 1199 | -10/Subcaves | Core integrity fell below 50% 1258 | -10/Subcaves | Lost 4 parts (1p2n1w) 1285 | -10/Subcaves | Shifting Twisted Machinery released Humpback 1305 | -10/Subcaves | Discovered new exit (range 9) 1320 | -10/Subcaves | Learned location of Zion (-7) 1320 | -10/Subcaves | Met a Zionite searching for "candidates" 1348 | -10/Subcaves | Shifting Twisted Machinery released Flamer 1441 | -10/Subcaves | Entered Materials 1441 | -8/Materials | Evolved 4 slots: Utility x3, Weapon x1 1732 | -8/Materials | Build established: Tank 1816 | -8/Materials | Discovered new exit (range 16) 2097 | -8/Materials | Discovered new exit (range 9) 2102 | -8/Materials | Build established: Scavenger-Tank 2502 | -8/Materials | Build established: Hauler-Tank 3041 | -8/Materials | First assault squad dispatched 3086 | -8/Materials | Garrison activated, responded to threat 3145 | -8/Materials | Destroyed 9 combat bots 3330 | -8/Materials | Lost 3 parts (1n2w) 3632 | -8/Materials | Lost 5 parts (1p1n3w) 3663 | -8/Materials | Core integrity fell below 50% 3720 | -8/Materials | Core integrity fell below 20% 3723 | -8/Materials | Lost 7 parts (1p1n4u1w) 3740 | -8/Materials | Destroyed by G-47 Trooper with Particle Gun Last Messages --------------- 03678_ Acquired Huge Storage Unit. 03688_ Acquired Lrg. Storage Unit. 03691_ Penetrated by Slug. 03692_ Imp. Heat Sink destroyed. 03693_ Critical hit (Burn: +37). 03710_ Slug penetrates Wall. 03722_ G-47 Trooper destroyed. 03722_ Slug penetrates Wall. 03723_ ALERT: Suspicious intruders detected, dispatching Specialist reinforcements to area. 03725_ Critical hit (Burn: +37). 03726_ Acquired Lgt. Nuclear Core. 03729_ Penetrated by Slug. 03729_ Wheel destroyed. 03732_ Penetrated by Slug. 03738_ H-55 Commando heat damages Assault Rifle, Carbon-fiber Leg, Gauss Rifle, Targeting Computer. 03738_ Slug penetrates Wall. 03739_ Destroyed Lgt. Nuclear Core. 03739_ Destroyed Assault Rifle. Map ----- +----------------------------------------------------+ | ??# "###+####??#?#####???????????????????????# | | ??# # #? ????????????????????????## | | ??# # # ? ??????????????????????????# | | ??# # * [ +? ????????????????????????????# | | ?##+##+##!#!#!#? #?????????????????????????????# | | ?# #*%[=!## #?????????????????????????????# | | ?# #*![|!% #?????????????????????????????# | | ?#"" ! "[!!%!%= #?????????????????????????????# | | ?#"T "%[[!*[ #?????????????????????????????# | | ?#"" % # [[]]##+###?????????????????????????????# | | ?# ""#%*##??????????????????????????????????# | | ?###"######!##???????????????????????????????????# | | ???# #???#" ##???????????????????????????????????# | | ???# ##### #???????????????????????????????????# | | ???# #?????????????????????????##????????# | | ???# ##### ! ###########???????????????# #???????# | | ???# #???## ### #????????????##### ######## | | ???# #?#### #?# !!! #??????????? | | ???# ###! #?# !! #?????????????# | | ???# ##! #?# !! #?????????????# | | ???# ## #?# #?????????????# | | ???# ##! ### ##########????# """ """ | | ???# ##! / ?# #????# """ """ | | ???? ?##! ### ???# #????+ """ "" | | ???? ??#### ### ?????# #????# | | ???? ???# ##+########@ #????# = | | ???? ???# #hg""" #????# / | | ??# H % """ #????## ####### | | ??# # # """ #?????# ???# | | ??## # ########### """ #?????# ?????# | | ???# ?#######?????????# g""" #????????????# " | | ???# ??????????????????# ]#????????????# " | | ???# ???????????????????# ?????????????#" " | | ???#????????????????????#########????????????#T | | ?????????????????????????????????????????????#" | | ?????????????????????????????????????????????# | | ?????????????????????????????????????????????##### | | ?????????????????????????????????????????????????# | | ?????????????????????????????????????????????????# | | ?????????????????????????????????????????????????# | | ?????????????????????????????????????????????????# | | ????????????????????????????????????????????????## | | ????????????????????????????????????????????????# | | ????????????????????????????????????????????????# | | ??????????????????????????????????????#?????????+ | | ??????????????????????????????????????# ???????# | | ??????????????????????????????????????# ###+## | | ??????????????????????????????????????# | | ??????????????????????????????????????# | | ??????????????????????????????????????# | +----------------------------------------------------+ Best States ------------- Heat Dissipation 64 Energy Generation 18 Energy Capacity 280 Matter Stores 500 Matter Capacity 500 Sight Range 16 Terrain Scan Density 10 Additional Mass Support 6 Armor Coverage 300 Core Shielding 20 Evasion (%) 44 Item Schematics ----------------- Beam Cannon | -8/Materials | Scanalyzed Arm. Wheel | -8/Materials | Scanalyzed Humpback | -8/Materials | Scanalyzed Lgt. Assault Rifle | -8/Materials | Scanalyzed Imp. Heat Sink | -8/Materials | Scanalyzed Cld. Pulse Rifle | -8/Materials | Scanalyzed Robot Schematics ------------------ None Fabricated ------------ Nothing Alien Tech Used ----------------- None Achievements -------------- None Challenges ------------ None Game ------ Seed WardroneNovaDetonator Manual? 0 Play Time 00:49:00 Cumulative 275.1 hours Start 2024.04.22 @ 15:24:13 End 2024.04.22 @ 17:11:12 Sessions 1 Manual Loads 0 Difficulty Rogue Special Mode None Game No. 218 Rogue 206 Adventurer 12 Explorer 0 Win Type - Total 1 Types 1/0/0/0/0/0/0/0/0 Lore% 33 Gallery% 51 Achievement% 37 Wizard Run 0 Options --------- Layout 1 ASCII 0 Keyboard 0 Movement Mouse Keybinds 0 Fullscreen 1 Font 32/SmallcapsGlow Map View 77x35 Zoom Use 0% Tactical HUD 1 Map Filters NONE Filters NONE Steam 1 RUN: a1419e28-cb88-4d09-b29c-b6d365e48bbc